Workbook

Sheet Biztosítási termékismertető 1

Sheet Biztosítási termékismertető 2

Sheet Biztosítási termékismertető 3

Sheet Díjösszesítő
Q2: Választható kedvezmények: | AM2: Előzetes kármentességi engedmény:
Q3: Díjfizetési engedmény | AM3: Egyedi engedmény:
V4: 60 E és 100 E Ft közötti éves díj esetén a gyakoriság választható, de díjkedvezmény nincs! (60 E Ft alatt csak éves lehet)
D17: Kötvényszám:
C19: BIZTOSÍTÁSI KÖTVÉNY
C20: =IFERROR(IF(A176=1,"Elektromos és elektronikus gépek és berendezések biztosítása",IF(A176=2,"Gép-, géptörés-biztosítás","All Risks Gépbiztosítás")),"Elektromos és elektronikus gépek és berendezések biztosítására") -> All Risks Gépbiztosítás
C22: Jelen biztosítási kötvénnyel az UNION Vienna Insurance Group Biztosító Zrt. vállalja, hogy az előírt és esedékes biztosítási díj megfizetése ellenében biztosítási fedezetet nyújt a biztosítottnak a biztosítási szabályzatokban, feltételekben vállalt kockázatokra.
C24: A kötvény a Partner által előzetesen aláírt ajánlat alapján készült és a kötvény mellékletét képező aktuális részletezővel, szabályzattal, feltétellel és záradékokkal együtt érvényes.
AP31: =IFERROR(IF(A176=1,"Elektromos és elektronikus gépek és berendezések biztosítása",IF(A176=2,"Gép-, géptörés-biztosítás","All Risks Gépbiztosítás")),"Elektromos és elektronikus gépek és berendezések biztosítására") -> All Risks Gépbiztosítás
AP32: Biztosítási Ajánlat
C35: Módozat: | F35: 7807 | K35: Üzletkötő neve: | AD35: Üzletkötő kódja:
C37: Átdolgozás: | G37: nem | O37: Előzmény kötv.száma: | V37: Adóigazgatási szám: 1049 1984-2-44 | AG37: Ajánlat azonosító:
C39: Készítette: | G39: Ambrus Péter | N39: =CONCATENATE("Tel: ",IFERROR(VLOOKUP(G39,C194:K205,7,FALSE),"")," E-mail: ",IFERROR(VLOOKUP(G39,C194:K205,4,FALSE),"")) -> Tel: 666-7656 E-mail: ambrus.peter@unionbiztosito.hu | AG39: Hiv.szám:
C42: Szerződő / Biztosított neve:
C44: Adószáma: | P44: Tel: | AB44: E-mail:
C46: Székhelye:
F47: ir.sz. | R47: helység | AF47: közter.: | AL47: hsz.em.ajtó
C49: Levelezési Címe:
C50: Biztosított neve:
F51: ir.sz. | R51: helység | AF51: közter. | AL51: hsz.em.ajtó
C52: Adószáma: | P52: Tel: | AB52: E-mail:
H54: ír.sz. | S54: helység | AG54: utca | AL54: hsz.em.ajtó
C58: Hitelező:
C60: Címe: | H60: ír.sz. | S60: helység | AG60: utca | AL60: hsz.em.ajtó
C70: Biztosított tevékenység(ek):
C73: Kockázatviselés helye:
E75: Területi hatály: | M75: =IF(AND('All Risks Gépbiztosítás'!U6,ajanlat.fajtaja=3),"Magyarország, azon belül a munkavégzés helye","A telephely, mint kockázatviselés helye") -> Magyarország, azon belül a munkavégzés helye
E78: Biztosítási időszak:
E79: Biztosítás tartama: | M79: határozatlan, melyen belül a biztosítási időszak 1 év
E81: Biztosítási évforduló:
E83: Kockázatviselés kezdete: | R83: , | S83: de legkorábban az elfogadott ajánlat biztosító kötvénykiállításra jogosult
M84: szervezeti egységéhez történő visszaérkezését követő nap 0.00 órája
D85: Díjfizetés kezdete: | F85: =S83 -> de legkorábban az elfogadott ajánlat biztosító kötvénykiállításra jogosult
E86: Díjfizetés gyakorisága: | M86: =IF(csak.eves.dij=1,H176,IF(F176=TRUE,H176,IF(F177=TRUE,H177,IF(F178=TRUE,H178)))) -> éves
E88: Díjfizetés módja: | M88: a biztosító által kiállított számviteli bizonylat alapján, átutalással
H91: Biztosítási díj összesítő
H93: Elektromos és elektronikus gépek és berendezések biztosítása | AA93: =IF(ELBER!M41=0,0,ELBER!F47) -> 0
H94: Géptörésbiztosítás | AA94: =IF(Géptörés!M44=0,0,Géptörés!F51) -> 0
H95: All Risks Gépbiztosítás | AA95: =IF('All Risks Gépbiztosítás'!M44=0,0,'All Risks Gépbiztosítás'!I56) -> 0
H96: pótdíj szállítási kockázatra: | AA96: ='All Risks Gépbiztosítás'!Z63 -> 0
H97: pótdíj lopás kockázatra: | AA97: ='All Risks Gépbiztosítás'!Z62 -> 0
H98: pótdíj közúti forgalmi kiterjesztésre: | AA98: ='All Risks Gépbiztosítás'!I52 -> 0
H99: pótdíj kölcsöngép többletktsg. fed.-re: | AA99: ='All Risks Gépbiztosítás'!I53 -> 0
H101: Éves díj: | AA101: =IF(elber=TRUE,AA93,IF(geptores=TRUE,AA94,IF(allrisk=TRUE,AA95))) -> 0
H103: Egyedi engedmény: | AE103: 0
E104: Engedmények:
H105: Egyedi engedmény: | X105: =AN3 -> 0 | AA105: =IF(OR($AA$101=0,X105=0),"",$AA$101*X105) -> 
H106: Tartamengedmény (3 év esetén) | X106: =IF(F182=TRUE,G182,0) -> 0 | AA106: =IF(OR($AA$101=0,X106=0),"",$AA$101*X106) -> 
H107: Megelőlegezett kármentességi eng.: | X107: =AN2 -> 0 | AA107: =IF(OR($AA$101=0,X107=0),"",$AA$101*X107) -> 
H108: Díjfizetési gyakoriság engedménye: | X108: =IF(AA101<100000,0,IF(F176=TRUE,G176,IF(F177=TRUE,G177,IF(F178=TRUE,G178)))) -> 0 | AA108: =IF(OR($AA$101=0,X108=0),"",$AA$101*X108) -> 
H109: Engedménnyel csökkentett éves díj: | AA109: =IF(F172=0,0,IF(AND(elber,F172<elbermindij),elbermindij,IF(AND(geptores,F172<gepmindij),gepmindij,IF(AND(allrisk,F172<zaradekosmin),zaradekosmin,F172)))) -> 0 | AG109: =IF(F172=0,"",IF(AND(elber,F172<25000),"Minimum díj!",IF(AND(geptores,F172<30000),"Minimum díj!",IF(AND(allrisk,F172<zaradekosmin),"Minimum díj!","")))) -> 
H111: Gyakoriság szerint fizetendő díj: | AA111: =IF(F176,AA109,IF(F177,AA109/2,IF(F178,AA109/4,""))) -> 0 | AG111: / gyakoriság
C113: Ajánlattétel esetén kérjük az ajánlatot az ügyfél cégszerű aláírásával ellátva részünkre visszaküldeni. Amennyiben az abban és a biztosítási ajánlatban felsorolt dokumentumok bármelyikével nem rendelkeznek, kérjük, jelezzék felénk.
C116: Előzetes díjajánlatunk 30 napig érvényes.
C118: Tisztelettel: | AA118: UNION Vienna Insurance Group Biztosító Zrt.
F126: A biztosított három alábbi mutatója közül legalább kettő meghaladja-e a következő értékeket:
H127: Mérleg főösszege az 1,5 mrd. Ft-ot
H128: Nettó üzleti forgalma a 3 mrd. Ft-ot
H129: Átlagos alkalmazotti létszám az 1.000 főt
F133: Szerződőként ezúton nyilatkozom, hogy Társaságunk:
F138: minősül.
C141: Ajánlatot teszek a fent részletezett biztosításra, amelynek alapján az UNION Vienna Insurance Group Biztosító Zrt. azt a kötelezettséget vállalja, hogy díjfizetés ellenében készpénzben megtéríti a különös feltételekben felsorolt biztosítási események során bekövetkező azon károkat, amelyekre a biztosítási szerződés kiterjed.
C145: Tudomásul veszem, hogy: - jelen ajánlat a biztosító kockázat-elbírálásának alapja, továbbá, hogy a biztosító kötvény kiállításra jogosult szervezeti egységének az ajánlat beérkezésétől számított 15 nap áll rendelkezésére a kockázat elbírálására,
H146: - a biztosító a kockázatelbírálás eredményeként az ajánlatot jogosult elutasítani, az elutasítást nem köteles megindokolni,
H147: - a biztosító kártérítése - betöréses lopás esetén - a kár időpontjában fennálló vagyonvédelmi színvonal függvényében történik
H148: - a biztosító a tényleges adatoktól való eltérés esetén az alul- és túlbiztosítottságot vizsgálja
C150: Kijelentem, hogy: | H150: - az ajánlattétel előtt biztosítási igényem felmérése nyomán a vonatkozó termékismertetőket átvettem, áttanulmányoztam és megértettem,
H151: - a jogszabályban előírt tájékoztatást megkaptam,
H152: - jelen ajánlatomban minden biztosítási szándékommal kapcsolatos igényemet rögzítettek, más szóbeli megállapodás nem történt.
C153: Kijelentem, hogy az Adatkezelési tájékoztató a biztosítási ajánlat aláírását megelőzően részemre átadásra került, és tudomással bírok arról, hogy ezen dokumentum a biztosító honlapján (www.union.hu) bármikor megtekinthető.
D156: Kelt: | E156: =szerz.helys -> 0 | L156: , | M156: =TODAY() -> 2021-07-01
S158: Biztosításközvetítő aláírása | AF158: Szerződő cégszerű aláírása
A166: Elber, Géptörés, All risk | F166: Engedménnyel csökkentett éves díj sor:
A167: FALSE | F167: =IF(F182,1,IF(AND(elozetes.engedmeny<>"",elozetes.engedmeny<>0),1,IF(AND(uzleti.engedmeny<>"",uzleti.engedmeny<>0),1,0))) -> 0
A168: FALSE
A169: TRUE
A171: Előzetes kármentességi | F171: Végösszeg
A172: 0.1 | F172: =(AA101*(1-(AE103+X105+X106+X107+X108))) -> 0
A173: 0.15
A175: Ajánlat fajtája | F175: Díjfizetés:
A176: 3 | F176: TRUE | G176: 0.05 | H176: éves
F177: FALSE | G177: 0.025 | H177: féléves
A178: Biztosított a szerződő | F178: FALSE | G178: 0 | H178: negyedéves
A179: FALSE
A181: Hitel | F181: tartamengedmény
A182: FALSE | F182: FALSE | G182: 0.1
A184: Lízing
A185: FALSE | F185: =AA101 -> 0
F186: =IF(F185<G186,1,0) -> 1 | G186: 60000 | H186: <-- e díj alatt megbontani sem lehet a díjat (csak éves)
A189: igen
A190: nem
C194: Ambrus Péter | F194: ambrus.peter@unionbiztosito.hu | I194: 666-7656
C195: Árokszállási Zoltán | F195: ajanlatkeres@unionbiztosito.hu | I195: 486-4366
C196: Csanádi Zoltán | F196: csanadi.zoltan@unionbiztosito.hu | I196: 486-4235
C197: Dobi László | F197: dobi.laszlogabor@unionbiztosito.hu | I197: 486-4346
C198: Hajdók Viktória | F198: hajdok.viktoria@unionbiztosito.hu | I198: 486-4213
C199: Klinger József | F199: klinger.jozsef@unionbiztosito.hu | I199: 486-4232
C200: Utry Oszkár | F200: ajanlatkeres@unionbiztosito.hu | I200: 486-4215

Sheet ELBER (hidden)
A1: ELBER biztosítás
B3: Géplista:
B5: Biztosított gépkategória: | D5: grafikai, nyomdatechnikai eszközök
B7: Önrész: | D7: 10%, de min.
U9: FALSE
A10: ELBER
D11: Elektromos és elektronikus gépek és berendezések biztosítása
D13: I. Dologi károk biztosítása
D16: Biztosított kockázatok: | F16: Ha a kár oka: a biztosított vagyontárgyakban előre nem látható,véletlenül, váratlanul bekövetkezett fizikai károsodás, mellyel kapcsolatban a biztosító a kártérítési kötelezettségét nem zárta ki. | U16: Értékelés alapja
U17: új érték
D18: Géplista | U18: műszaki avult
D19: Megnevezés | F19: Gyártmány, Típus | G19: Azonosító szám | H19: Gyárt. év | I19: Egyedi gépérték (bizt. összeg) | J19: Értékelés alapja | M19: Alapdíj (Ft) | O19: Gépcsoport | S19: 50000000 | T19: Gépcsoport | W19: Alapdíj
E20: Az ajánlatkéréshez csatolt adatközlő szerint | J20: 0 | M20: új érték | S20: 500000000
M21: =IF(AND($M$41=elbermindij,W21<>"",W21>0),"Minimum díj!",W21) ->  | O21: =IF(AND(U21>2,U21<12),_ize,IF(AND(U21>12,U21<22),_ize2,IF(AND(U21>22,U21<28),_ize3,IF(AND(U21>28,U21<42),_ize4,"")))) ->  | S21: 500000000 | U21: =IFERROR(VLOOKUP(T21,elberlista!$A$3:$B$45,2,FALSE),0) -> 0 | V21: =IF(O21=$V$179,$V$180,IF(O21=$W$179,$W$180,IF(O21=$X$179,$X$180,IF(O21=$Y$179,$Y$180))))*IF(I21<=$U$180,$AB$180,IF(I21<=$U$181,$AB$181,IF(I21<=$U$182,$AB$182,IF(I21<=$U$183,$AB$183,IF(I21<=$U$184,$AB$184,"túl nagy a biztosítási összeg")))))*$X$186 -> 0 | W21: =IF($F$41>$S$21,0,IF(V21=0,IF(I21>0,0,""),I21*V21/1000)) -> 
U22: =IFERROR(VLOOKUP(T22,elberlista!$A$3:$B$45,2,FALSE),0) -> 0 | V22: =IF(O22=$V$179,$V$180,IF(O22=$W$179,$W$180,IF(O22=$X$179,$X$180,IF(O22=$Y$179,$Y$180))))*IF(I22<=$U$180,$AB$180,IF(I22<=$U$181,$AB$181,IF(I22<=$U$182,$AB$182,IF(I22<=$U$183,$AB$183,IF(I22<=$U$184,$AB$184,"túl nagy a biztosítási összeg")))))*$X$186 -> 0 | W22: =IF($F$41>$S$21,0,IF(V22=0,IF(I22>0,0,""),I22*V22/1000)) -> 
U23: =IFERROR(VLOOKUP(T23,elberlista!$A$3:$B$45,2,FALSE),0) -> 0 | V23: 0
S24: 1 | U24: =IFERROR(VLOOKUP(T24,elberlista!$A$3:$B$45,2,FALSE),0) -> 0 | V24: 0
U25: =IFERROR(VLOOKUP(T25,elberlista!$A$3:$B$45,2,FALSE),0) -> 0 | V25: 0
U26: =IFERROR(VLOOKUP(T26,elberlista!$A$3:$B$45,2,FALSE),0) -> 0 | V26: 0
U27: =IFERROR(VLOOKUP(T27,elberlista!$A$3:$B$45,2,FALSE),0) -> 0 | V27: 0
U28: =IFERROR(VLOOKUP(T28,elberlista!$A$3:$B$45,2,FALSE),0) -> 0 | V28: 0
S29: Gyártási év lista | U29: =IFERROR(VLOOKUP(T29,elberlista!$A$3:$B$45,2,FALSE),0) -> 0 | V29: 0
S30: =YEAR(TODAY()) -> 2021 | U30: =IFERROR(VLOOKUP(T30,elberlista!$A$3:$B$45,2,FALSE),0) -> 0 | V30: 0
S31: =S30-1 -> 2020 | U31: =IFERROR(VLOOKUP(T31,elberlista!$A$3:$B$45,2,FALSE),0) -> 0 | V31: 0
S32: =S31-1 -> 2019 | U32: =IFERROR(VLOOKUP(T32,elberlista!$A$3:$B$45,2,FALSE),0) -> 0 | V32: 0
S33: 2018 | U33: =IFERROR(VLOOKUP(T33,elberlista!$A$3:$B$45,2,FALSE),0) -> 0 | V33: 0
S34: 2017 | U34: =IFERROR(VLOOKUP(T34,elberlista!$A$3:$B$45,2,FALSE),0) -> 0 | V34: 0
S35: 2016 | U35: =IFERROR(VLOOKUP(T35,elberlista!$A$3:$B$45,2,FALSE),0) -> 0 | V35: 0
S36: 2015 | U36: =IFERROR(VLOOKUP(T36,elberlista!$A$3:$B$45,2,FALSE),0) -> 0 | V36: 0
S37: 2014 | U37: =IFERROR(VLOOKUP(T37,elberlista!$A$3:$B$45,2,FALSE),0) -> 0 | V37: 0
S38: 2013 | U38: =IFERROR(VLOOKUP(T38,elberlista!$A$3:$B$45,2,FALSE),0) -> 0 | V38: 0
S39: 2012 | U39: =IFERROR(VLOOKUP(T39,elberlista!$A$3:$B$45,2,FALSE),0) -> 0 | V39: 0
S40: 2011 | U40: =IFERROR(VLOOKUP(T40,elberlista!$A$3:$B$45,2,FALSE),0) -> 0 | V40: 0
D41: Biztosítási összeg összesen: | F41: =IF(SUM(I21:I40)>500000000,"Nem lehet több, mint 500 millio",SUM(I21:I40)) -> 0 | L41: Összesen: | M41: =IF(F41<=S21,IF(AND(SUM(W21:W40)>0,SUM(W21:W40)<elbermindij),elbermindij,SUM(W21:W40)),0) -> 0
D43: Önrész: | F43: =U190 -> 10 %, de min. 25 000 Ft/ kár
D45: Díjtétel: | F45: 1
D47: Éves díj: | F47: =IFERROR(IF(AND(F41<=S21,M41<V193),V193,M41),0) -> 25000 | H47: =IF(F47=V193,"(minimum díj!)"," ") -> (minimum díj!)
D49: II. Külső adathordozók biztosítása
D51: Biztosított kockázatok: | E51: a dologi károk biztosításában fedezett biztosítási események miatt az adathordozókban, adatokban bekövetkezett károk fedezete
D54: adatok újraelőállítási költsége | F54: 0 | I54: műszaki avult érték
D55: lap-top-ok | F55: 0 | I55: műszaki avult érték
D56: előgondoskodás | F56: 0
D57: szoftverek | F57: 0 | I57: tényleges beszerzési érték
D58: Biztosítási összeg összesen: | F58: =SUM(F54:F57) -> 0
D60: Önrész: | F60: 0 | G60: / kár - levonásos
D64: Díjtétel: | E64: a) | F64: 0
E65: b) | F65: 0
E66: c) | F66: 0
D68: Éves díj: | E68: a) | F68: =(F58*F64)/1000 -> 0
E69: b) | F69: =(F58*F65)/1000 -> 0
E70: c) | F70: =(F58*F66)/1000 -> 0
D72: A biztosítottak kötelesek minden nap a munkaidő végén számítógépes rendszerükben lévő adatokról biztonsági mentést készíteni és azokat külön tűzszakaszon tárolni.
D74: III. Többletköltségek biztosítása
D76: Biztosított kockázatok: | E76: a dologi károk biztosításában fedezett biztosítási események miatt bekövetkező többletkölségek fedezete
D79: többletköltség (…. havi adat) | F79: 0 | X79: FALSE
D80: lap-top-ok | F80: 0 | I80: műszaki avult érték
D81: előgondoskodás | F81: 0 | X81: TRUE
D82: szoftverek | F82: 0 | I82: tényleges beszerzési érték
D83: Biztosítási összeg összesen: | F83: =SUM(F79:F82) -> 0
D85: Fedezeti tartam: | F85: 6
D86: Fedezeti összeg: | F86: 0
D88: Önrész: | F88: 0
D92: Díjtétel: | E92: a) | F92: 0
E93: b) | F93: 0
E94: c) | F94: 0
D96: Éves díj: | E96: a) | F96: =F83*F92/1000 -> 0
E97: b) | F97: =(F83*F93)/1000 -> 0
E98: c) | F98: =(F83*F94)/1000 -> 0
D99: Üzletmenetfolytonossági terv miatti engedmény (egyedi záradék szerint): | F99: 0
D102: Fizetendő éves díj: | F102: =F96-(F96*F99) -> 0
D105: Összesen: | F105: =F102+F68+F47 -> 25000
D110: Biztosítási feltételek
D111: Általános Vagyonbiztosítási Feltételek (U70050) Elektromos és elektronikus gépek és berendezések Különös Biztosítási Feltételei (U70052)
D112: Külső adathordozók és az azokon tárolt információk kiegészítő biztosítási feltételei az Elektromos és elektronikus gépek és bernedezések Különös Biztosítási Feltételeihez
D113: Többletmunka költségeinek kiegészítő biztosítási feltételei az Elektromos és elektronikus gépek és berendezések Különös Biztosítási Feltételeihez
D114: Betöréses lopás és rablás biztosítási Védelmi Feltételek (U71019/1)
D115: Egyedi záradék:
D116: Fedezetkiterjesztés telephelyen kívüli és szállítási kockázatokra
D117: EGYÉB
D119: A biztosítási szerződésen a …………………………………. (…………………………………………..) került zálogjogosultként bejegyzésre az alábbi biztosított gépet ért károk esetére, az alábbi hitel és járulékai, de maximum a biztosítási összeg erejéig. Biztosított gép: …………………………………. Hitelszerződés száma: ………………………… Hitel típusa: ………………………… Hitel kezdete: ………………………… Hitel lejárata: ………………………… Hitel összege: ………………………… A zálogjogosult bejegyzése a biztosítás érvényességi időtartama alatt áll fenn, annak megszüntetése csak a zálogjogosult írásos kérelmére lehetséges.
D122: A biztosítási szerződésre a fentiekben hivatkozott biztosítási feltételek és az ajánlatban foglalt egyedi záradékok együttesen vonatkoznak.
D123: A Biztosító kockázatviselése a szabadban tárolt vagyontárgyak fedezetére nem terjed ki. A Biztosító nem nyújt fedezetet, nem teljesít kárkifizetést, valamint nem nyújt szolgáltatást, amennyiben ezen fedezet nyújtásával, illetve kár kifizetésével a Biztosító sértené az Egyesült Nemzetek Szervezetének határozata szerinti bármely szankcióit, rendelkezéseit, vagy rendeleteit, valamint Magyarország, az Európai Unió, illetve az Egyesült Államok kereskedelmi, pénzügyi embargóit vagy gazdasági szankcióit, törvényeit vagy rendeleteit, (feltéve, hogy ezek nem sértik az biztosítóra alkalmazandó szabályozásokat vagy nemzeti jogszabályokat). Nem terjed ki a biztosítás azokra a károkra, amelyek bármilyen (bakteriális, vírusos, stb.) kórokozói eredetű járványos megbetegedéssel, betegséggel, vagy fertőzéssel összefüggésben következnek be, és amelyek a kórokozó bármely fajtájától, mutációjától, illetve variánsától származnak.
D125: Tartamtól függő engedmény:
D126: A Biztosított / Szerződő egyoldalúan vállalja, hogy jelen biztosítási szerződést 3 évig (tartamidőszak) nem szünteti meg. Az UNION Vienna Insurance Group Biztosító Zrt. a Biztosított / Szerződő előbbi kötelezettségvállalása miatt 10 % tartamtól függő engedményt ad a biztosítási szerződés éves összdíjából. Amennyiben Biztosított / Szerződő előbbi kötelezettségvállalása ellenére a biztosítási szerződést egyoldalúan megszünteti, ide nem értve az érdekmúlás esetét, úgy a biztosítási szerződés megszűnéséig köteles a jelen záradékban foglalt engedmény Biztosító részére történő egyösszegű visszafizetésére. A tartamidőszak elteltével a felek ismét megállapodhatnak a tartamtól függő engedmény előzőekben írt szabályainak újabb tartamidőszakra történő alkalmazásában. Ilyen megállapodásnak tekintendő az is, ha a tartamidőszak leteltéig sem a Biztosított / Szerződő, sem a Biztosító nem intéz a másik félhez a szerződés, illetve a tartamtól függő engedmény alkalmazásának megszűntetésére irányuló nyilatkozatot. A díjösszesítőn írt éves díjak a tartamtól függő engedményt nem tartalmazzák.
D128: Megelőlegezett kármentességi díjengedmény
D129: =CONCATENATE("A biztosító a szerződőt a jelen szerződés tekintetében a biztosítási időszakra annak teljes díja ",elozetes.engedmeny*100&"%","-ának megfelelő mértékű megelőlegezett kármentességi díjengedményben részesíti. Amennyiben a díjengedménnyel érintett szerződés alapján kárigény érvényesítésre kerül sor ","és a biztosító ennek kapcsán szolgáltatás nyújtására kötelezett, a szerződő köteles a kármentességi díjengedmény összegét a ","biztosító számára megfizetni, illetve - amennyiben a szolgáltatás jogosultja a szerződő - a biztosító jogosult a díjengedmény összegét a szolgáltatás összegéből közvetlenül levonásba helyezni.") -> A biztosító a szerződőt a jelen szerződés tekintetében a biztosítási időszakra annak teljes díja 0%-ának megfelelő mértékű megelőlegezett kármentességi díjengedményben részesíti. Amennyiben a díjengedménnyel érintett szerződés alapján kárigény érvényesítésre kerül sor és a biztosító ennek kapcsán szolgáltatás nyújtására kötelezett, a szerződő köteles a kármentességi díjengedmény összegét a biztosító számára megfizetni, illetve - amennyiben a szolgáltatás jogosultja a szerződő - a biztosító jogosult a díjengedmény összegét a szolgáltatás összegéből közvetlenül levonásba helyezni.
S131: biztosítási összeg (M Ft) | T131: számítás- és irodatechnikai gépek | U131: orvosi és kozmetikai gép, tudományos kutatás gépei | V131: grafikai, nyomdatechnikai eszközök | W131: telekom, automatizálás és méréstechnika, szórakoztató elektronikára
S132: 0-10 | T132: 4.4 | U132: 4.84 | V132: 5.25 | W132: 5.42
S133: 11-25 | T133: =T132*0.91 -> 4.004 | U133: =U132*0.91 -> 4.4044 | V133: =V132*0.91 -> 4.7775 | W133: =W132*0.91 -> 4.9322
D134: Díjfizetési engedmény: | S134: 21-50 | T134: =T133*0.9 -> 3.6036 | U134: =U133*0.9 -> 3.96396 | V134: =V133*0.9 -> 4.29975 | W134: =W133*0.9 -> 4.43898
D135: Amennyiben a szerződő/biztosított a biztosítási díjat az alábbi díjfizetési gyakorisággal egyenlíti ki, akkor a biztosító a számára a fentiekben megállapított biztosítási díjakból az alábbi díjfizetési engedményeket nyújtja. | S135: 51-100 | T135: =T134*0.91 -> 3.279276 | U135: =U134*0.91 -> 3.6072036 | V135: =V134*0.91 -> 3.9127725 | W135: =W134*0.91 -> 4.0394718
D136: - éves díjfizetés esetén: 5% | S136: 101-250 | T136: =T135*0.92 -> 3.01693392 | U136: =U135*0.92 -> 3.318627312 | V136: =V135*0.92 -> 3.5997507 | W136: =W135*0.92 -> 3.716314056
D137: - féléves díjfizetés esetén: 2,5%.
D139: Kelt: | E139: =kelt&", "&TEXT(Díjösszesítő!M156, "ÉÉÉÉ.hh.nn") -> 0, 2021.07.01
H140: Szerződő cégszerű aláírása | T140: =T133/$T$132 -> 0.91 | U140: =U133/$U$132 -> 0.91 | V140: =V133/$V$132 -> 0.91 | W140: =W133/$W$132 -> 0.91
T141: =T134/$T$132 -> 0.819 | U141: =U134/$U$132 -> 0.819 | V141: =V134/$V$132 -> 0.819 | W141: =W134/$W$132 -> 0.819
T142: =T135/$T$132 -> 0.74529 | U142: =U135/$U$132 -> 0.74529 | V142: =V135/$V$132 -> 0.74529 | W142: =W135/$W$132 -> 0.74529
T143: =T136/$T$132 -> 0.6856668 | U143: =U136/$U$132 -> 0.6856668 | V143: =V136/$V$132 -> 0.6856668 | W143: =W136/$W$132 -> 0.6856668
D169: Átlagos alkalmazotti létszám az 1.000 főt
F171: igen | I171: nem
D174: Kelt:
I175: Szerződő cégszerű aláírása
R179: FALSE | T179: biztosítási összeg (M Ft) | V179: 1.) Számítás- és irodatechnikai gépek (kizárólag kockázatviselési helyen), épületgépészethez tartozó elektronikus eszközök Irodagépek (irógép, számológép, másológép) | W179: 2.) Orvosi, kozmetikai és tudomásony kutatás gépei | X179: 3.) Grafikai, nyomdatechnikai eszközök | Y179: 4.) Telekomminikációs eszközök, automatizálás és méréstechnika gépei, szórakoztató elektronika
T180: 0 | U180: 10000000 | V180: =4.4*1.1 -> 4.84 | W180: =4.84*1.1 -> 5.324 | X180: =5.25*1.1 -> 5.775 | Y180: =5.42*1.1 -> 5.962 | AB180: 1
T181: 11 | U181: 25000000 | V181: =V180*AB181 -> 4.4044 | W181: =W180*$AB$181 -> 4.84484 | X181: =$X$180*AB181 -> 5.25525 | Y181: =$Y$180*AB181 -> 5.42542 | AB181: 0.91
T182: 26 | U182: 50000000 | V182: =$V$180*AB182 -> 3.96396 | W182: =$W$180*AB182 -> 4.360356 | X182: =$X$180*AB182 -> 4.729725 | Y182: =$Y$180*AB182 -> 4.882878 | AB182: 0.819
T183: 51 | U183: 100000000 | V183: =$V$180*AB183 -> 3.6072036 | W183: =$W$180*AB183 -> 3.96792396 | X183: =$X$180*AB183 -> 4.30404975 | Y183: =$Y$180*AB183 -> 4.44341898 | AB183: 0.74529
T184: 101 | U184: 250000000 | V184: =$V$180*AB184 -> 3.318627312 | W184: =$W$180*AB184 -> 3.650490043 | X184: =$X$180*AB184 -> 3.95972577 | Y184: =$Y$180*AB184 -> 4.087945462 | AB184: 0.6856668
S186: alapönrész | T186: TRUE | U186: 10 %, de min. 25 000 Ft/ kár | W186: 1 | X186: =IF(T186=TRUE,W186,IF(T187=TRUE,W187,IF(T188=TRUE,W188))) -> 1 | AA186: b.ö. szorzó: | AB186: =IF(I21<=U180,AB180,IF(I21<=U181,AB181,IF(I21<=U182,AB182,IF(I21<=U183,AB183,IF(I21<=U184,AB184,"túl nagy a biztosítási összeg"))))) -> 1
T187: FALSE | U187: 10 %, de min. 50 000 Ft/ kár | W187: 0.9
T188: FALSE | U188: 10 %, de min. 100 000 Ft/ kár | W188: 0.8 | AA188: géptípus szorzó: | AB188: '=HA(T21=V179;V180;HA(T21=W179;W180;HA(T21=X179;X180;HA(T21=Y179;Y180))))
U190: =IF(T186=TRUE,U186,IF(T187=TRUE,U187,IF(T188=TRUE,U188))) -> 10 %, de min. 25 000 Ft/ kár | AA190: együtt: | AB190: ""=X186*AB186*AB188
U193: minimális díj: | V193: 25000

Sheet Géptörés (hidden)
A1: Géptörés biztosítás
B3: Géplista:
B5: Biztosított gépkategória: | D5: mezőgazdasági és erdészeti gépek (kivéve kombájnok, arató-, cséplőgépek, szárítók)
B7: Önrész: | D7: 10%, de min.
U9: TRUE
A10: Géptörés | D10: Gép-, géptörés-biztosítás
D12: Biztosított kockázatok: | E12: Tervezési vagy kivitelezési hiba, anyaghiba, rázkódás, alkatrészek kilazulása, hibás beállítás vagy szabályozás, rossz elhelyezés, kenés kimaradás, túlterhelés, túlhevülés, túlpörgés, rövidzárlat, szigetelési hiba, mérő-szabályozó berendezések meghibásodása, leesés, lökés, ütközés, gépet üzemeltető dolgozó figyelmetlensége. | U12: Értékelés alapja
D13: Géplista | U13: új érték
D14: Megnevezés | F14: Gyártmány, Típus | G14: Azonosító szám | H14: Gyárt. év | I14: Egyedi gépérték (bizt. összeg) | J14: Értékelés alapja | M14: Alapdíj (Ft) | O14: Gépcsoport | T14: Gépcsoport | U14: műszaki avult | W14: Alapdíj
E15: Az ajánlatkéréshez csatolt adatközlő szerint | J15: 44225000 | M15: új érték
M16: =IF(AND($M$44=gepmindij,W16<>"",W16>0),"Minimum díj!",W16) ->  | O16: =IF(AND(U16>2,U16<6),geptorcsop1,IF(AND(U16>6,U16<24),geptorcsop2,IF(AND(U16>24,U16<68),geptorcsop3,IF(AND(U16>68,U16<106),geptorcsop4,"")))) ->  | U16: =IFERROR(VLOOKUP(T16,geptoreslista!$A$3:$B$121,2,FALSE),0) -> 0 | V16: =IF(I16<=$T$155,$AA$155,IF(I16<=T156,$AA$156,IF(I16<=$T$157,$AA$157,IF(I16<=$T$158,$AA$158,IF(I16<=$T$159,$AA$159,"túl nagy b.ö.")))))*IF(O16=$U$153,$U$155,IF(O16=$V$153,$V$155,IF(O16=$W$153,$W$155,IF(O16=$X$153,$X$155))))*$V$166 -> 0 | W16: =IF($F$44>$S$21,0,IF(V16=0,IF(I16>0,0,""),I16*V16/1000)) -> 
U17: =IFERROR(VLOOKUP(T17,geptoreslista!$A$3:$B$121,2,FALSE),0) -> 0 | V17: =IF(I17<=$T$155,$AA$155,IF(I17<=T157,$AA$156,IF(I17<=$T$157,$AA$157,IF(I17<=$T$158,$AA$158,IF(I17<=$T$159,$AA$159,"túl nagy b.ö.")))))*IF(O17=$U$153,$U$155,IF(O17=$V$153,$V$155,IF(O17=$W$153,$W$155,IF(O17=$X$153,$X$155))))*$V$166 -> 0 | W17: =IF($F$44>$S$21,0,IF(V17=0,IF(I17>0,0,""),I17*V17/1000)) -> 
U18: =IFERROR(VLOOKUP(T18,geptoreslista!$A$3:$B$121,2,FALSE),0) -> 0 | V18: 0
S19: 50000000 | U19: =IFERROR(VLOOKUP(T19,geptoreslista!$A$3:$B$121,2,FALSE),0) -> 0 | V19: 0
S20: 500000000 | U20: =IFERROR(VLOOKUP(T20,geptoreslista!$A$3:$B$121,2,FALSE),0) -> 0 | V20: 0
S21: 500000000 | U21: =IFERROR(VLOOKUP(T21,geptoreslista!$A$3:$B$121,2,FALSE),0) -> 0 | V21: 0
U22: =IFERROR(VLOOKUP(T22,geptoreslista!$A$3:$B$121,2,FALSE),0) -> 0 | V22: 0
U23: =IFERROR(VLOOKUP(T23,geptoreslista!$A$3:$B$121,2,FALSE),0) -> 0 | V23: 0
S24: Gyártási év lista | U24: =IFERROR(VLOOKUP(T24,geptoreslista!$A$3:$B$121,2,FALSE),0) -> 0 | V24: 0
S25: =YEAR(TODAY()) -> 2021 | U25: =IFERROR(VLOOKUP(T25,geptoreslista!$A$3:$B$121,2,FALSE),0) -> 0 | V25: 0
S26: =S25-1 -> 2020 | U26: =IFERROR(VLOOKUP(T26,geptoreslista!$A$3:$B$121,2,FALSE),0) -> 0 | V26: 0
S27: =S26-1 -> 2019 | U27: =IFERROR(VLOOKUP(T27,geptoreslista!$A$3:$B$121,2,FALSE),0) -> 0 | V27: 0
S28: 2018 | U28: =IFERROR(VLOOKUP(T28,geptoreslista!$A$3:$B$121,2,FALSE),0) -> 0 | V28: 0
S29: 2017 | U29: =IFERROR(VLOOKUP(T29,geptoreslista!$A$3:$B$121,2,FALSE),0) -> 0 | V29: 0
S30: 2016 | U30: =IFERROR(VLOOKUP(T30,geptoreslista!$A$3:$B$121,2,FALSE),0) -> 0 | V30: 0
S31: 2015 | U31: =IFERROR(VLOOKUP(T31,geptoreslista!$A$3:$B$121,2,FALSE),0) -> 0 | V31: 0
S32: 2014 | U32: =IFERROR(VLOOKUP(T32,geptoreslista!$A$3:$B$121,2,FALSE),0) -> 0 | V32: 0
S33: 2013 | U33: =IFERROR(VLOOKUP(T33,geptoreslista!$A$3:$B$121,2,FALSE),0) -> 0 | V33: 0
S34: 2012 | U34: =IFERROR(VLOOKUP(T34,geptoreslista!$A$3:$B$121,2,FALSE),0) -> 0 | V34: 0
S35: 2011 | U35: =IFERROR(VLOOKUP(T35,geptoreslista!$A$3:$B$121,2,FALSE),0) -> 0 | V35: 0
V42: =V44 -> 10 %, de min. 100 000 Ft/ kár
D44: Biztosítási összeg összesen: | F44: =IF(SUM(I16:I35)>500000000,"Nem lehet több, mint 500 millio",SUM(I16:I35)) -> 0 | L44: Összesen: | M44: =IF(F44<=S21,IF(AND(SUM(W16:W35)>0,SUM(W16:W35)<gepmindij),gepmindij,SUM(W16:W35)),0) -> 0 | U44: TRUE | V44: =IF(U44=TRUE,V162,IF(U45=TRUE,V163,IF(U46=TRUE,V164))) -> 10 %, de min. 100 000 Ft/ kár
U45: FALSE
D46: Önrész: | F46: =V44 -> 10 %, de min. 100 000 Ft/ kár | U46: FALSE
D49: Díjtétel: | F49: =ROUND(Z169,3) -> 0
D51: Éves díj: | F51: =IFERROR(IF(AND(F44<=S21,M44<W171),W171,M44),0) -> 30000 | H51: =IF(F51=W171,"(minimum díj!)","") -> (minimum díj!)
D53: Biztosítási feltételek
D54: Általános Vagyonbiztosítási Feltételek (U70050) Gép-, géptörés-biztosítás Különös biztosítási feltételek (U70053)
D55: ZÁRADÉKOK:
D56: G01. :Alapzatok | G56: G07.: Biztonságtechnikai elemek
D57: G02.: Tűztérfalazatok és kemencék
D58: G03.: Gépolajok | G58: G08.: Belső égésű motorok
D59: G04.: Hűtőberendezések, hűtőszekrények | G59: G12.: Lecserélt részek értékcsökkenése
D60: G05.: Lánctalpas járművek | G60: G13.: Kárrendezés géptörés- és tűzbiztosítás ütközése esetén
D61: G06.: Robbantások
D64: G09.: Fénycsövek, lámpák és fűtőelemek
D65: G10.: Égőfej fúvókák
D66: G11.: Gázturbina-berendezések
D69: A fedezet érvényességéhez kérjük a berendezések azonosító adatait (megnvezés, típus, gyári szám, gyártási év) megadni szíveskedjenek!
D71: Kiegészítő biztosítás Géptörés-üzemszünet esetére
D72: Biztosított kockázatok: | F72: géptörés biztosítás miatt bekövetkező géptörés üzemszüneti kár a biztosítási feltételben meghatározottak szerint
D74: Állandó költség: | F74: 0
D75: Nyereség: | F75: 0
D76: Biztosítási összeg: | F76: =SUM(F74:F75) -> 0
D77: Fedezeti összeg: | F77: =F76/(12/F78) -> 0
D78: Fedezeti idő: | F78: 6
D80: Önrész: | E80: a) | F80: 3 | G80: /kár
E81: b) | G81: /kár
E82: c) | G82: /kár
D84: Díjtétel: | E84: a) | F84: 0
E85: b) | F85: 0
E86: c) | F86: 0
D88: Éves díj: | E88: a) | F88: =F76*F84/1000 -> 0
E89: b) | F89: =($D$169*F85)/1000 -> 0 | X89: TRUE
E90: c) | F90: =($D$169*F86)/1000 -> 0
D92: Biztosítási feltételek:
D93: Általános Vagyonbiztosítási Feltételek
D94: Gép-, géptörés-biztosítás Különös biztosítási feltételek
D95: Géptörés-üzemszünet biztosítási Kiegészítő feltételei a Gép- és géptörésbiztosítás Különös biztosítási feltételeihez
D96: EGYÉB
D97: EGYÉB
D98: A biztosítási szerződésen a …………………………………. (…………………………………………..) került zálogjogosultként bejegyzésre az alábbi biztosított gépet ért károk esetére, az alábbi hitel és járulékai, de maximum a biztosítási összeg erejéig. Biztosított gép: …………………………………. Hitelszerződés száma: ………………………… Hitel típusa: ………………………… Hitel kezdete: ………………………… Hitel lejárata: ………………………… Hitel összege: ………………………… A zálogjogosult bejegyzése a biztosítás érvényességi időtartama alatt áll fenn, annak megszüntetése csak a zálogjogosult írásos kérelmére lehetséges.
D99: A biztosítási szerződésre a fentiekben hivatkozott biztosítási feltételek és az ajánlatban foglalt egyedi záradékok együttesen vonatkoznak.
D100: A Biztosító kockázatviselése a szabadban tárolt vagyontárgyak fedezetére nem terjed ki. A Biztosító nem nyújt fedezetet, nem teljesít kárkifizetést, valamint nem nyújt szolgáltatást, amennyiben ezen fedezet nyújtásával, illetve kár kifizetésével a Biztosító sértené az Egyesült Nemzetek Szervezetének határozata szerinti bármely szankcióit, rendelkezéseit, vagy rendeleteit, valamint Magyarország, az Európai Unió, illetve az Egyesült Államok kereskedelmi, pénzügyi embargóit vagy gazdasági szankcióit, törvényeit vagy rendeleteit, (feltéve, hogy ezek nem sértik az biztosítóra alkalmazandó szabályozásokat vagy nemzeti jogszabályokat). Nem terjed ki a biztosítás azokra a károkra, amelyek bármilyen (bakteriális, vírusos, stb.) kórokozói eredetű járványos megbetegedéssel, betegséggel, vagy fertőzéssel összefüggésben következnek be, és amelyek a kórokozó bármely fajtájától, mutációjától, illetve variánsától származnak.
D102: Tartamtól függő engedmény:
D103: A Biztosított / Szerződő egyoldalúan vállalja, hogy jelen biztosítási szerződést 3 évig (tartamidőszak) nem szünteti meg. Az UNION Vienna Insurance Group Biztosító Zrt. a Biztosított / Szerződő előbbi kötelezettségvállalása miatt 10 % tartamtól függő engedményt ad a biztosítási szerződés éves összdíjából. Amennyiben Biztosított / Szerződő előbbi kötelezettségvállalása ellenére a biztosítási szerződést egyoldalúan megszünteti, ide nem értve az érdekmúlás esetét, úgy a biztosítási szerződés megszűnéséig köteles a jelen záradékban foglalt engedmény Biztosító részére történő egyösszegű visszafizetésére. A tartamidőszak elteltével a felek ismét megállapodhatnak a tartamtól függő engedmény előzőekben írt szabályainak újabb tartamidőszakra történő alkalmazásában. Ilyen megállapodásnak tekintendő az is, ha a tartamidőszak leteltéig sem a Biztosított / Szerződő, sem a Biztosító nem intéz a másik félhez a szerződés, illetve a tartamtól függő engedmény alkalmazásának megszűntetésére irányuló nyilatkozatot. A díjösszesítőn írt éves díjak a tartamtól függő engedményt nem tartalmazzák.
D105: Megelőlegezett kármentességi díjengedmény
D106: =CONCATENATE("A biztosító a szerződőt a jelen szerződés tekintetében a biztosítási időszakra annak teljes díja ",elozetes.engedmeny*100&"%","-ának megfelelő mértékű megelőlegezett kármentességi díjengedményben részesíti. Amennyiben a díjengedménnyel érintett szerződés alapján kárigény érvényesítésre kerül sor ","és a biztosító ennek kapcsán szolgáltatás nyújtására kötelezett, a szerződő köteles a kármentességi díjengedmény összegét a ","biztosító számára megfizetni, illetve - amennyiben a szolgáltatás jogosultja a szerződő - a biztosító jogosult a díjengedmény összegét a szolgáltatás összegéből közvetlenül levonásba helyezni.") -> A biztosító a szerződőt a jelen szerződés tekintetében a biztosítási időszakra annak teljes díja 0%-ának megfelelő mértékű megelőlegezett kármentességi díjengedményben részesíti. Amennyiben a díjengedménnyel érintett szerződés alapján kárigény érvényesítésre kerül sor és a biztosító ennek kapcsán szolgáltatás nyújtására kötelezett, a szerződő köteles a kármentességi díjengedmény összegét a biztosító számára megfizetni, illetve - amennyiben a szolgáltatás jogosultja a szerződő - a biztosító jogosult a díjengedmény összegét a szolgáltatás összegéből közvetlenül levonásba helyezni.
D111: Díjfizetési engedmény:
D112: Amennyiben a szerződő/biztosított a biztosítási díjat az alábbi díjfizetési gyakorisággal egyenlíti ki, akkor a biztosító a számára a fentiekben megállapított biztosítási díjakból az alábbi díjfizetési engedményeket nyújtja.
D113: - éves díjfizetés esetén: 5%
D114: - féléves díjfizetés esetén: 2,5%.
D116: Kelt: | E116: =keltkotveny -> 0, 2021.07.01
H117: Szerződő cégszerű aláírása
D138: UNION Vienna Insurance Group Biztosító Zrt.
D140: A fentiek alapján ajánlatot teszek az UNION Vienna Insurance Group Biztosító Zrt. részére és kérem a kötvény, valamint a számla kiállítását.
D141: Tartamengedmény | E141: ¨ | F141: igen | G141: ¨ | H141: nem
D142: Díjfizetés ütemezése
D143: A biztosított három alábbi mutatója közül legalább kettő meghaladja-e a következő értékeket:
D144: Mérleg főösszege az 1,5 mrd. Ft-ot
D145: Nettó üzleti forgalma a 3 mrd. Ft-ot
D146: Átlagos alkalmazotti létszám az 1.000 főt
F148: igen | I148: nem
D151: Kelt:
I152: Szerződő cégszerű aláírása
T153: biztosítási összeg (M Ft) | U153: 1) Mezőgazdasági és erdészeti gépek, targoncák | V153: 2) építőipari gépek | W153: 3.) Fa-, fém-, nyomda-, műanyag-, textilipari gépek és gépsorok | X153: 4.) Élelmiszeripari-, raktározás és logisztikai gépek; épületgépészet
S155: 0 | T155: 10000000 | U155: =4.2*1.1 -> 4.62 | V155: =4.62*1.1 -> 5.082 | W155: =3.81*1.1 -> 4.191 | X155: =3.62*1.1 -> 3.982 | Z155: 1 | AA155: 1 | AB155: 1 | AC155: 1
S156: 11000000 | T156: 25000000 | U156: =U155*0.89 -> 4.1118 | V156: =V155*0.89 -> 4.52298 | W156: =W155*0.89 -> 3.72999 | X156: =X155*0.89 -> 3.54398 | Z156: =U156/U155 -> 0.89 | AA156: =V156/V155 -> 0.89 | AB156: =W156/W155 -> 0.89 | AC156: =X156/X155 -> 0.89
S157: 21000000 | T157: 50000000 | U157: =U156*0.9 -> 3.70062 | V157: =V156*0.88 -> 3.9802224 | W157: =W156*0.88 -> 3.2823912 | X157: =X156*0.88 -> 3.1187024 | Z157: =U157/U155 -> 0.801 | AA157: =V157/V155 -> 0.7832 | AB157: =W157/W155 -> 0.7832 | AC157: =X157/X155 -> 0.7832
S158: 51000000 | T158: 100000000 | U158: =U157*0.91 -> 3.3675642 | V158: =V157*0.86 -> 3.422991264 | W158: =W157*0.86 -> 2.822856432 | X158: =X157*0.86 -> 2.682084064 | Z158: =U158/U155 -> 0.72891 | AA158: =V158/V155 -> 0.673552 | AB158: =W158/W155 -> 0.673552 | AC158: =X158/X155 -> 0.673552
S159: 101000000 | T159: 250000000 | U159: =U158*0.92 -> 3.098159064 | V159: =V158*0.865 -> 2.960887443 | W159: =W158*0.865 -> 2.441770814 | X159: =X158*0.865 -> 2.320002715 | Z159: =U159/U155 -> 0.6705972 | AA159: =V159/V155 -> 0.58262248 | AB159: =W159/W155 -> 0.58262248 | AC159: =X159/X155 -> 0.58262248
S160: 251000000
T162: alapönrész | V162: 10 %, de min. 100 000 Ft/ kár | X162: 1
V163: 10 %, de min. 250 000 Ft/ kár | X163: 0.9
V164: 10 %, de min. 500 000 Ft/ kár | X164: 0.8
U166: önrész szorzó | V166: =IF(V42=V162,X162,IF(V42=V163,X163,IF(V42=V164,X164))) -> 1 | Y166: bö szorzó | Z166: =IF(F44<=T155,AA155,IF(F44<=T156,AA156,IF(F44<=T157,AA157,IF(F44<=T158,AA158,IF(F44<=T159,AA159,"túl nagy b.ö."))))) -> 1
U169: géptip szozó | V169: =IF(D5=U153,U155,IF(D5=V153,V155,IF(D5=W153,W155,IF(D5=X153,X155)))) -> FALSE | Z169: =Z166*V169*V166 -> 0
V171: minimum díj: | W171: 30000
V173: egyedi gépérték max: | W173: 100000000
R179: FALSE
P180: =Díjösszesítő!F186 -> 1

Sheet All Risks Gépbiztosítás
A1: All Risks Gépbiztosítás | G1: Záradékok:
A2: Telephelyen kívüli a munkavégzés:
A3: Géplista:
AR4: Beviteli sorok száma:
A5: Biztosított gépkategória | B5: mezőgazd. és erdészeti gépek, targoncák (kivéve kombájnok, arató-, cséplőgépek, szárítók)
U6: TRUE
A7: Önrész | D7: de min.
U9: FALSE
A10: All Risks Gépbiztosítás | D10: All Risks Gépbiztosítás | T10: =IF(AND(U62=FALSE,U63=FALSE,U64=FALSE,U65=FALSE,U66=FALSE,U67=FALSE),1,0) -> 0
D13: Biztosított kockázatok: | F13: az All Risks Gépbiztosítás feltételei szerint | U13: biztosítási összeg (M Ft) | W13: 1) Mezőgazdasági és erdészeti gépek, targoncák | X13: 2) építőipari gépek | Y13: 3.) Fa-, fém-, nyomda-, műanyag-, textilipari gépek és gépsorok | Z13: 4.) Élelmiszeripari-, raktározás és logisztikai gépek; épületgépészet
V14: Legutolsó módosítás: 2014.10.16 - *0,85
D15: Géplista | U15: 0 | V15: 10000000 | W15: =5.23*0.85*1.1 -> 4.89005 | X15: =5.54*0.85*1.1 -> 5.1799 | Y15: =4.96*0.85*1.1 -> 4.6376 | Z15: =4.72*0.85*1.1 -> 4.4132 | AA15: 1
D16: Megnevezés | F16: Gyártmány, Típus | G16: Azonosító szám | H16: Gyárt. év | I16: Egyedi gépérték (bizt. összeg) | J16: Értékelés alapja | M16: Alapdíj (Ft) | O16: Gépcsoport | S16: új érték | U16: 10000001 | V16: 25000000 | W16: =W15*0.89 -> 4.3521445 | X16: =X15*0.89 -> 4.610111 | Y16: =Y15*0.89 -> 4.127464 | Z16: =Z15*0.89 -> 3.927748 | AA16: 0.89 | AB16: Gépcsoport | AD16: Szorzó | AE16: Alapdíj
M17: =IF(AND($M$44=allriskmindij,AE17<>"",AE17>0),"Minimum díj!",AE17) ->  | O17: =IF(AND(AC17>2,AC17<19),allriskcsop1,IF(AND(AC17>19,AC17<40),allriskcsop2,IF(AND(AC17>40,AC17<84),allriskcsop3,IF(AND(AC17>84,AC17<122),allriskcsop4,"")))) ->  | S17: műszaki avult | U17: 25000001 | V17: 50000000 | W17: =W16*0.9*1.1 -> 4.308623055 | X17: =X16*0.9 -> 4.1490999 | Y17: =Y16*0.9 -> 3.7147176 | Z17: =Z16*0.9 -> 3.5349732 | AA17: =AA16*0.9 -> 0.801 | AC17: =IFERROR(VLOOKUP(AB17,allrisklista!$A$3:$B$139,2,FALSE),0) -> 0 | AD17: =IF(I17<=$V$15,$AA$15,IF(I17<=$V$16,$AA$16,IF(I17<=$V$17,$AA$17,IF(I17<=$V$18,$AA$18,IF(I17<=$V$19,$AA$19,"túl nagy b.ö.")))))*$V$57*IF(O17=allriskcsop1,$W$15,IF(O17=allriskcsop2,$X$15,IF(O17=allriskcsop3,$Y$15,IF(O17=allriskcsop4,$Z$15,0)))) -> 0 | AE17: =IF($F$44>$S$21,0,IF(AD17=0,IF(I17>0,0,""),I17*AD17/1000)) -> 
U18: 50000001 | V18: 100000000 | W18: =W17*0.91 -> 3.92084698 | X18: =X17*0.91 -> 3.775680909 | Y18: =Y17*0.91 -> 3.380393016 | Z18: =Z17*0.91 -> 3.216825612 | AA18: =AA17*0.91 -> 0.72891 | AC18: =IFERROR(VLOOKUP(AB18,allrisklista!$A$3:$B$139,2,FALSE),0) -> 0 | AD18: =IF(I18<=$V$15,$AA$15,IF(I18<=$V$16,$AA$16,IF(I18<=$V$17,$AA$17,IF(I18<=$V$18,$AA$18,IF(I18<=$V$19,$AA$19,"túl nagy b.ö.")))))*$V$57*IF(O18=allriskcsop1,$W$15,IF(O18=allriskcsop2,$X$15,IF(O18=allriskcsop3,$Y$15,IF(O18=allriskcsop4,$Z$15,0)))) -> 0 | AE18: =IF($F$44>$S$21,0,IF(AD18=0,IF(I18>0,0,""),I18*AD18/1000)) -> 
S19: 50000000 | U19: 100000001 | V19: 250000000 | W19: =W18*0.92 -> 3.607179222 | X19: =X18*0.92 -> 3.473626436 | Y19: =Y18*0.92 -> 3.109961575 | Z19: =Z18*0.92 -> 2.959479563 | AA19: =AA18*0.92 -> 0.6705972 | AC19: =IFERROR(VLOOKUP(AB19,allrisklista!$A$3:$B$139,2,FALSE),0) -> 0 | AD19: 0
AC20: =IFERROR(VLOOKUP(AB20,allrisklista!$A$3:$B$139,2,FALSE),0) -> 0 | AD20: 0
S21: 500000000 | AC21: =IFERROR(VLOOKUP(AB21,allrisklista!$A$3:$B$139,2,FALSE),0) -> 0 | AD21: 0
W22: Old díjtételz' | AC22: =IFERROR(VLOOKUP(AB22,allrisklista!$A$3:$B$139,2,FALSE),0) -> 0 | AD22: 0
W23: 5.23 | X23: 5.54 | Y23: 4.96 | Z23: 4.72 | AC23: =IFERROR(VLOOKUP(AB23,allrisklista!$A$3:$B$139,2,FALSE),0) -> 0 | AD23: 0
T24: Gyártási év list | W24: =W23*0.89 -> 4.6547 | X24: =X23*0.89 -> 4.9306 | Y24: =Y23*0.89 -> 4.4144 | Z24: =Z23*0.89 -> 4.2008 | AC24: =IFERROR(VLOOKUP(AB24,allrisklista!$A$3:$B$139,2,FALSE),0) -> 0 | AD24: 0
T25: =YEAR(TODAY()) -> 2021 | W25: =W24*0.9 -> 4.18923 | X25: =X24*0.9 -> 4.43754 | Y25: =Y24*0.9 -> 3.97296 | Z25: =Z24*0.9 -> 3.78072 | AC25: =IFERROR(VLOOKUP(AB25,allrisklista!$A$3:$B$139,2,FALSE),0) -> 0 | AD25: 0
T26: =T25-1 -> 2020 | W26: =W25*0.91 -> 3.8121993 | X26: =X25*0.91 -> 4.0381614 | Y26: =Y25*0.91 -> 3.6153936 | Z26: =Z25*0.91 -> 3.4404552 | AC26: =IFERROR(VLOOKUP(AB26,allrisklista!$A$3:$B$139,2,FALSE),0) -> 0 | AD26: 0
T27: =T26-1 -> 2019 | W27: =W26*0.92 -> 3.507223356 | X27: =X26*0.92 -> 3.715108488 | Y27: =Y26*0.92 -> 3.326162112 | Z27: =Z26*0.92 -> 3.165218784 | AC27: =IFERROR(VLOOKUP(AB27,allrisklista!$A$3:$B$139,2,FALSE),0) -> 0 | AD27: 0
T28: 2018 | AC28: =IFERROR(VLOOKUP(AB28,allrisklista!$A$3:$B$139,2,FALSE),0) -> 0 | AD28: 0
T29: 2017 | AC29: =IFERROR(VLOOKUP(AB29,allrisklista!$A$3:$B$139,2,FALSE),0) -> 0 | AD29: 0
T30: 2016 | AC30: =IFERROR(VLOOKUP(AB30,allrisklista!$A$3:$B$139,2,FALSE),0) -> 0 | AD30: 0
T31: 2015 | AC31: =IFERROR(VLOOKUP(AB31,allrisklista!$A$3:$B$139,2,FALSE),0) -> 0 | AD31: 0
T32: 2014 | AC32: =IFERROR(VLOOKUP(AB32,allrisklista!$A$3:$B$139,2,FALSE),0) -> 0 | AD32: 0
T33: 2013 | AC33: =IFERROR(VLOOKUP(AB33,allrisklista!$A$3:$B$139,2,FALSE),0) -> 0 | AD33: 0
T34: 2012 | AC34: =IFERROR(VLOOKUP(AB34,allrisklista!$A$3:$B$139,2,FALSE),0) -> 0 | AD34: 0
T35: =T34-1 -> 2011 | AC35: =IFERROR(VLOOKUP(AB35,allrisklista!$A$3:$B$139,2,FALSE),0) -> 0 | AD35: 0
AC36: =IFERROR(VLOOKUP(AB36,allrisklista!$A$3:$B$139,2,FALSE),0) -> 0 | AD36: 0
AC37: =IFERROR(VLOOKUP(AB37,allrisklista!$A$3:$B$139,2,FALSE),0) -> 0
AC38: =IFERROR(VLOOKUP(AB38,allrisklista!$A$3:$B$139,2,FALSE),0) -> 0
AC39: =IFERROR(VLOOKUP(AB39,allrisklista!$A$3:$B$139,2,FALSE),0) -> 0
Y40: 10 %, de min. 100 000 Ft/ kár | AC40: =IFERROR(VLOOKUP(AB40,allrisklista!$A$3:$B$139,2,FALSE),0) -> 0
Y41: 10 %, de min. 250 000 Ft/ kár | AC41: =IFERROR(VLOOKUP(AB41,allrisklista!$A$3:$B$139,2,FALSE),0) -> 0
Y42: 10 %, de min. 500 000 Ft/ kár | AC42: =IFERROR(VLOOKUP(AB42,allrisklista!$A$3:$B$139,2,FALSE),0) -> 0
AC43: =IFERROR(VLOOKUP(AB43,allrisklista!$A$3:$B$139,2,FALSE),0) -> 0
D44: Biztosítási összeg összesen: | F44: =IF(SUM(I17:I36)>500000000,"Nem lehet több, mint 500 millio!",SUM(I17:I36)) -> 0 | L44: Összesen: | M44: =IF(F44<=S21,IF(AND(SUM(AE17:AE36)>0,SUM(AE17:AE36)<allriskmindij),allriskmindij,SUM(AE17:AE36)),0) -> 0
D45: Önrész(ek)
E46: alapfedezetre: | F46: =IF(U71,V71,V72) -> 10%, de min. | G46: =IF(T52,U52,IF(T53,U53,IF(T54,U54,0))) -> 100000 | U46: Minimum díj | V46: 40000
E47: közúti forgalmi kiterjesztésre: | F47: =IF(U71=TRUE,V71,V72) -> 10%, de min. | G47: =IF(T54,U54,250000) -> 250000 | U47: Záradékos min | V47: =I56*(allriskmindij/evesalapdij) -> 40000
E48: kölcsöngép többletktsg. fed.-re:
E49: lopás kockázatra: | F49: 25%, de min. | G49: =IF(T52,U52,IF(T53,U53,IF(T54,U54,0))) -> 100000
D51: Éves alapfedezet: | I51: =IF(AND(F44<=S21,M44<allriskmindij),allriskmindij,M44) -> 40000 | K51: =IF(evesalapdij=V46,"(minimum díj!)","") -> (minimum díj!) | U51: önrész szorzók
F52: pótdíj közúti forgalmi kiterjesztésre: | I52: =Z59 -> 0 | T52: TRUE | U52: 100000 | V52: =IF($U$71,1,1*0.82) -> 1
F53: pótdíj és szublimit kölcsöngép többletktsg. fed.-re: | I53: =Z60 -> 0 | K53: =ROUND(F44*10%,-5) -> 0 | T53: FALSE | U53: 250000 | V53: =IF($U$71,0.9,0.9*0.82) -> 0.9
F54: pótdíj lopás kockázatra: | G54: =Z62 -> 0 | T54: FALSE | U54: 500000 | V54: =IF($U$71,0.8,0.8*0.82) -> 0.8
F55: pótdíj és szublimit szállítás kockázatra: | G55: =Z63 -> 0 | K55: =ROUND(F44*20%,-5) -> 0
D56: Éves díj összesen: | I56: =SUM(G51:I55) -> 40000 | X56: Díjtétel
V57: =IF(T52,V52,IF(T53,V53,IF(T54,V54,0))) -> 1 | X57: =V44*V57 -> 0
D58: Biztosítási feltételek
D59: Általános Vagyonbiztosítási Feltételek (U70050) All Risks gépbiztosítás Különös Biztosítási Feltételek (U70054) Betöréses lopás és rablás biztosítási Védelmi Feltételek (U71019/1) | Z59: =Z61*V63 -> 0 | AA59: 2.sz z. pótdíj
D60: ZÁRADÉKOK: | Z60: =Z61*V64 -> 0 | AA60: 3.sz z. pótdíj
D61: 2.sz. záradék: munkagépek, különleges felépítményű gépjárművek fedezetének kiegészítése közúti forgalomra | W61: önr. min. | Z61: =IF(M44=0,0,I51) -> 0
Z62: =Z61*V65 -> 0 | AA62: lopás fedezet
D63: 3.sz. záradék kölcsöngép többletköltségének fedezete | T63: 2.z. | U63: FALSE | V63: =IF(U63=TRUE,20%,0) -> 0 | Z63: =Z61*V66 -> 0 | AA63: szálíltás fedezet | AC63: =Z59+Z60+Z61+Z62+Z63 -> 0
D64: 4.sz. záradék Gépek, berendezések lopás fedezete | T64: 3.z. | U64: FALSE | V64: =IF(U64=TRUE,10%,0) -> 0
T65: 4.z. | U65: TRUE | V65: =IF(U65=TRUE,20%,0) -> 0.2
D66: G01. :Alapzatok | G66: G06.: Robbantások | T66: 5.z. | U66: FALSE | V66: =IF(U66=TRUE,15%,0) -> 0
D67: G03.: Gépolajok | G67: G07.: Biztonságtechnikai elemek
D68: G04.: Hűtőberendezések, hűtőszekrények | G68: G08.: Belső égésű motorok | V68: =SUM(V62:V67) -> 0.2 | X68: =X57+(X57*V68) -> 0
D69: G05.: Lánctalpas járművek | G69: G12.: Lecserélt részek értékcsökkenése
D70: EGYÉB
D71: A biztosítási szerződésen a …………………………………. (…………………………………………..) került zálogjogosultként bejegyzésre az alábbi biztosított gépet ért károk esetére, az alábbi hitel és járulékai, de maximum a biztosítási összeg erejéig. Biztosított gép: …………………………………. Hitelszerződés száma: ………………………… Hitel típusa: ………………………… Hitel kezdete: ………………………… Hitel lejárata: ………………………… Hitel összege: ………………………… A zálogjogosult bejegyzése a biztosítás érvényességi időtartama alatt áll fenn, annak megszüntetése csak a zálogjogosult írásos kérelmére lehetséges. | U71: TRUE | V71: 10%, de min.
D72: A biztosítási szerződésre a fentiekben hivatkozott biztosítási feltételek és az ajánlatban foglalt egyedi záradékok együttesen vonatkoznak. A Biztosító nem nyújt fedezetet, nem teljesít kárkifizetést, valamint nem nyújt szolgáltatást, amennyiben ezen fedezet nyújtásával, illetve kár kifizetésével a Biztosító sértené az Egyesült Nemzetek Szervezetének határozata szerinti bármely szankcióit, rendelkezéseit, vagy rendeleteit, valamint Magyarország, az Európai Unió, illetve az Egyesült Államok kereskedelmi, pénzügyi embargóit vagy gazdasági szankcióit, törvényeit vagy rendeleteit, (feltéve, hogy ezek nem sértik az biztosítóra alkalmazandó szabályozásokat vagy nemzeti jogszabályokat). Nem terjed ki a biztosítás azokra a károkra, amelyek bármilyen (bakteriális, vírusos, stb.) kórokozói eredetű járványos megbetegedéssel, betegséggel, vagy fertőzéssel összefüggésben következnek be, és amelyek a kórokozó bármely fajtájától, mutációjától, illetve variánsától származnak. | U72: FALSE | V72: 20%, de min.
D74: Tartamtól függő engedmény:
D75: A Biztosított / Szerződő egyoldalúan vállalja, hogy jelen biztosítási szerződést 3 évig (tartamidőszak) nem szünteti meg. Az UNION Vienna Insurance Group Biztosító Zrt. a Biztosított / Szerződő előbbi kötelezettségvállalása miatt 10 % tartamtól függő engedményt ad a biztosítási szerződés éves összdíjából. Amennyiben Biztosított / Szerződő előbbi kötelezettségvállalása ellenére a biztosítási szerződést egyoldalúan megszünteti, ide nem értve az érdekmúlás esetét, úgy a biztosítási szerződés megszűnéséig köteles a jelen záradékban foglalt engedmény Biztosító részére történő egyösszegű visszafizetésére. A tartamidőszak elteltével a felek ismét megállapodhatnak a tartamtól függő engedmény előzőekben írt szabályainak újabb tartamidőszakra történő alkalmazásában. Ilyen megállapodásnak tekintendő az is, ha a tartamidőszak leteltéig sem a Biztosított / Szerződő, sem a Biztosító nem intéz a másik félhez a szerződés, illetve a tartamtól függő engedmény alkalmazásának megszűntetésére irányuló nyilatkozatot. A díjösszesítőn írt éves díjak a tartamtól függő engedményt nem tartalmazzák.
U76: Minimumdíj | V76: 40000
D77: Megelőlegezett kármentességi díjengedmény
D78: =CONCATENATE("A biztosító a szerződőt a jelen szerződés tekintetében a biztosítási időszakra annak teljes díja ",elozetes.engedmeny*100&"%","-ának megfelelő mértékű megelőlegezett kármentességi díjengedményben részesíti. Amennyiben a díjengedménnyel érintett szerződés alapján kárigény érvényesítésre kerül sor ","és a biztosító ennek kapcsán szolgáltatás nyújtására kötelezett, a szerződő köteles a kármentességi díjengedmény összegét a ","biztosító számára megfizetni, illetve - amennyiben a szolgáltatás jogosultja a szerződő - a biztosító jogosult a díjengedmény összegét a szolgáltatás összegéből közvetlenül levonásba helyezni.") -> A biztosító a szerződőt a jelen szerződés tekintetében a biztosítási időszakra annak teljes díja 0%-ának megfelelő mértékű megelőlegezett kármentességi díjengedményben részesíti. Amennyiben a díjengedménnyel érintett szerződés alapján kárigény érvényesítésre kerül sor és a biztosító ennek kapcsán szolgáltatás nyújtására kötelezett, a szerződő köteles a kármentességi díjengedmény összegét a biztosító számára megfizetni, illetve - amennyiben a szolgáltatás jogosultja a szerződő - a biztosító jogosult a díjengedmény összegét a szolgáltatás összegéből közvetlenül levonásba helyezni.
D83: Díjfizetési engedmény:
D84: Amennyiben a szerződő/biztosított a biztosítási díjat az alábbi díjfizetési gyakorisággal egyenlíti ki, akkor a biztosító a számára a fentiekben megállapított biztosítási díjakból az alábbi díjfizetési engedményeket nyújtja.
D85: - éves díjfizetés esetén: 5%
D86: - féléves díjfizetés esetén: 2,5%.
D88: Kelt: | E88: =keltkotveny -> 0, 2021.07.01
H89: Szerződő cégszerű aláírása
H90: UNION Vienna Insurance Group Biztosító Zrt.
D110: UNION Vienna Insurance Group Biztosító Zrt.
D112: A fentiek alapján ajánlatot teszek az UNION Vienna Insurance Group Biztosító Zrt. részére és kérem a kötvény, valamint a számla kiállítását.
D113: Tartamengedmény | E113: ¨ | F113: igen | G113: ¨ | H113: nem
D114: Díjfizetés ütemezése
D115: A biztosított három alábbi mutatója közül legalább kettő meghaladja-e a következő értékeket:
D116: Mérleg főösszege az 1,5 mrd. Ft-ot
D117: Nettó üzleti forgalma a 3 mrd. Ft-ot
D118: Átlagos alkalmazotti létszám az 1.000 főt
F120: igen | I120: nem
D123: Kelt:
I124: Szerződő cégszerű aláírása
R185: FALSE
P186: =Díjösszesítő!F186 -> 1

Sheet Társbiztosítotti nyilatkozat (hidden)
A1: NYILATKOZAT TÁRSBIZTOSÍTOTT BEJEGYZÉSÉHEZ
B2: Értesítés a | E2: kötvényszámú biztosítási szerződéshez kapcsolódó változásról
A5: Union Vienna Insurance Group Biztosító Zrt.
A6: Vezérigazgatóság
A8: Budapest
A9: Baross u. 1.
A10: 1082
A13: 1. A(z) …………………..(szerződő)…………….. cégszerű képviseletében ezúton kérem Önöket, hogy a ………………. kockázatviselési kezdettel ……………………kötvényszámon Önökkel megkötött, egyedi vagyonbiztosítási szerződés esetében a szolgáltatási összeg tekintetében a finanszírozás futamidejére a …………………………….(lízingcég neve) re ( lízingcég címe.), mint Társbiztosítottat bejegyezni szíveskedjenek.
A14: 1. A(z) | B14: =Díjösszesítő!L42 -> 0 | G14: cégszerű képviseletében ezúton kérem Önöket, hogy a
D15: kockázatviselési kezdettel | J15: kötvényszámon Önökkel megkötött,
A16: egyedi vagyonbiztosítási szerződés esetében a szolgáltatási összeg tekintetében a finanszírozás futamidejére a
A17: =IF(Díjösszesítő!H58<>"",Díjösszesítő!H58,"") ->  | E17: re cím | F17: =Díjösszesítő!E60&" "&Díjösszesítő!J60&", "&Díjösszesítő!V60&" "&Díjösszesítő!AI60 -> , | N17: ,
A18: mint Társbiztosítottat bejegyezni szíveskedjenek.
A20: 2. Kérem, hogy jelen levelünk kézhezvételét követően a fent megjelölt biztosítási szerződésben meghatározott biztosítási események által a biztosított ………………………………………… vagyontárgyakban bekövetkezett káresemények esetén az önrészesedést meghaladó szolgáltatási összeget legfeljebb… …………………..Ft értékhatárig közvetlenül a Társbiztosított …………………. banknál vezetett ……………………………………………………………………………..számú számlájára átutalással teljesíteni szíveskedjenek.
A21: 2. Kérem, hogy jelen levelünk kézhezvételét követően a fent megjelölt biztosítási szerződésben meghatározott biztosítási
A22: események által a biztosított | I22: vagyontárgyakban bekövetkezett káresemények
A23: esetén az önrészesedést meghaladó szolgáltatási összeget legfeljebb | K23: értékhatárig közvetlenül a
A24: Társbiztosított | G24: banknál vezetett
A25: számú számlájára átutalással teljesíteni szíveskedjenek.
A27: 3. A Társbiztosított részéről a kapcsolattartó személy:
A28: Hitelszerződés száma:
A29: Finanszírozás időtartama:
A31: 4. Vagyontárgy(ak) – vagyoncsoporton belül:
A32: megnevezés: | G32: gyáriszám:
A34: 5. Hozzájárulok ahhoz, hogy a fent megjelölt biztosítási szerződés részét képező, biztosítási titoknak
A35: minősülő adatainkat az UNION Biztosító ZRt. a társbiztosított részére megadja.
A39: Kelt:
J43: szerződő

Sheet Zálogkötelezetti nyilatkozat (hidden)
A2: ZÁLOGKÖTELEZETTI NYILATKOZAT
A4: Szerződő/Biztosított adatai
A5: Név: | B5: =Díjösszesítő!L42 -> 0
A6: Adószáma: | C6: =Díjösszesítő!G44 -> 0
A7: Székhelye
A8: Ir.sz. | B8: =szerz.irsz -> 0 | C8: helység | D8: =Díjösszesítő!H47 -> 0 | F8: utca | G8: =szerz.cim -> 0 | H8: házsz.em.ajtó | I8: =szerz.hsz -> 0
A9: Hozzájárulok, hogy a Biztosító az itt megadott, biztosítási titoknak minősülő adataimat, a jelen nyilatkozatban megjelölt Zálogjogosult hitelintézetnek átadja.
A11: Biztosított/Zálogkötelezett nyilatkozata
A12: Alulírott Biztosított tájékoztatom az UNION Vienna Insurance Group Biztosító Zrt-t (továbbiakban: Biztosító), hogy a jelen nyomtatványon megjelölt kockázatviselési címen fellelhető vagyontárgyra, mint Zálogtárgyra vonatkozóan köztem – mint Zálogkötelezett – és a lent megjelölt hitelintézet – mint Zálogjogosult – között Zálogszerződés jött létre. Felhatalmazom a Biztosítót, hogy az itt hivatkozott Zálogtárgyra kötött biztosítási szerződésen a Zálogjogosultat megillető hitelbiztosítéki záradékot jegyezzen be.
A13: Felhatalmazom a Biztosítót, hogylegfeljebb a biztosított vagyontárgyak biztosítási összegének mértékéig terjedő teljes szolgáltatási összeget, közvetlenül a(z)
A14: Zálogjogosult neve: | D14: =Díjösszesítő!H58 -> 0
A15: Székhelye: | C15: =Díjösszesítő!E60&" "&Díjösszesítő!J60&", "&Díjösszesítő!V60&" "&Díjösszesítő!AI60 -> ,
A16: Zálogjogosult által vezetett számlára való átutalással teljesítse.
A18: Szerződő nyilatkozata
A19: Alulírott Szerződő felhatalmazom a Biztosítót az alábbiakra:
A20: - amennyiben a lentebb megjelölt biztosítási szerződés nem jön létre, úgy ennek tényéről a biztosítási ajánlat elutasításával egyidejűleg tájékoztathassa a Zálogjogosultat.
A21: - a biztosítási szerződésen a Zálogkötelezett jelen teljesítési utasítása alapján bejegyzett Zálogjogosultat megillető hitelbiztosítéki záradékot, annak külön hozzájárulása nélkül ne törölje,
A22: a biztosítási szerződés aktuális díjrendezettségi státuszát a Zálogjogosult megkeresésére – külön eljárásban – esetileg kiadja.
A24: Zálogtárgy adatai
A25: Kockázatviselési cím:
A26: Ir.sz. | C26: helység | F26: utca | H26: házsz.em.ajtó
A27: HRSZ:
A28: Hitelfedezet tárgya:
A29: Biztosítási ajánlat/szerződés azonosítója:
A30: Biztosítási szerződés tartama: | G30: Díjfizetés gyakorisága:
A31: Kockázatviselés kezdete:
A32: Épületbiztosítás biztosítási összege: | H32: Ft
A33: Gép, berendezés, felszerelés biztosítási összege: | H33: Ft
A34: Készlet biztosítási összege: | H34: Ft
A35: Egyéb vagyontárgy : | H35: Ft
H36: Ft
H37: Ft
H38: Ft
H39: Ft
A40: Hozzájárulok, hogy a Biztosító az itt megadott, biztosítási titoknak minősülő szerződési adatokat, a jelen nyilatkozatban megjelölt Zálogjogosult hitelintézetnek átadja.
A42: Zálogjogosult adatai
A43: Zálogjogosult hitelintézet neve: | E43: =D14 -> 0
A44: Székhelye: | E44: =C15 -> ,
A45: Hitelszerződés száma/azonosítója:
A46: Hitelszerződés kezdete: | G46: Hitel típusa:
A47: Hitelszerződés lejárata: | G47: Hitel összege:
A50: Kelt:
G52: Szerződő/Biztosított
G53: aláírása

Sheet Verzió (hidden)
B4: Dátum érvényesség | C4: Verzió | D4: Jelszó
B5: 2021-12-31 | C5: 1.96 | D5: Csillagharcosok

Sheet elberlista (hidden)
A1: ELBER besorolás
A3: --- 1. Számítás- és irodatechnikai gépek (kizárólag kockázatviselési helyen), épületgépészethez tartozó elektronikus eszközök --- | B3: 3
A4: Garázstechnika: sorompó, kapu, jegyautomata | B4: 4
A5: Helyiségvédő, riasztó és tűzjelző berendezések | B5: 5
A6: Irodagépek (írógép, számológép, másológép) | B6: 6
A7: Munkaidő ellenőrző berendezés, beléptető rendszer | B7: 7
A8: Számítógépek (rendszerek) | B8: 8
A9: Telefax készülék | B9: 9
A10: Telefon központok | B10: 10
A11: Telex készülék | B11: 11
B12: 12
A13: --- 2. Orvosi, kozmetikai és tudományos kutatás gépei --- | B13: 13
A14: Orvosi berendezések | B14: 14
A15: Fogorvosi berendezések | B15: 15
A16: Orvosi computertomográf | B16: 16
A17: Orvosi nukleáris (izotópos) kezelő berendezések | B17: 17
A18: Orvosi nukleáris (izotópos) vizsgáló berendezések | B18: 18
A19: Orvosi röntgen berendezések | B19: 19
A20: Orvosi ultrahang készülékek | B20: 20
B21: 21
A22: --- 3.) Grafikai, nyomdatechnikai eszközök --- | B22: 22
A23: elektronikus, számítógép vezérlésű nyomdagépek | B23: 23
A24: fényszedő, fotószedő berendezések | B24: 24
A25: Fotóberendezések | B25: 25
A26: nyomdai fotógép | B26: 26
B27: 27
A28: --- 4.) Telekomminikációs eszközök, automatizálás és méréstechnika gépei, szórakoztató elektronika --- | B28: 28
A29: Ipari elektronika | B29: 29
A30: Ipari röntgen berendezés | B30: 30
A31: Ipari televízió rendszer | B31: 31
A32: Mobil ipari elektronika | B32: 32
A33: Mozitechnikai berendezések | B33: 33
A34: Műsorszóró és adatátviteli berendezések | B34: 34
A35: Stúdió berendezések: beépített berendezések | B35: 35
B36: 36
B37: 37
B38: 38
B39: 39
B40: 40
B41: 41
B42: 42
B43: 43
B44: 44
B45: 45

Sheet geptoreslista (hidden)
A1: Géptörés besorolás
A3: --- 1) Mezőgazdasági és erdészeti gépek, targoncák --- | B3: 3
A4: Siló: szabad téren | B4: 4
A5: Siló: zárt térben | B5: 5
B6: 6
A7: --- 2) építőipari gépek --- | B7: 7
A8: aszfaltkeverő telep | B8: 8
A9: betonkeverő telep | B9: 9
A10: betonkő-, műkő gyártás gépei | B10: 10
A11: betonszivattyú | B11: 11
A12: darabológép | B12: 12
A13: égető/szárító kemence | B13: 13
A14: hidraulikus kalapács | B14: 14
A15: keverő-, szállító berendezés | B15: 15
A16: kő/tégla sajtó | B16: 16
A17: kőfeldolgozás gépei | B17: 17
A18: osztályozógép rosta, szita, ülepítő | B18: 18
A19: tömörítő (vibrátor): | B19: 19
A20: útburkolatfestő | B20: 20
A21: útburkolatmaró (aszfalt/beton) | B21: 21
A22: úthenger (vibrációs henger) | B22: 22
A23: vakológép | B23: 23
B24: 24
A25: --- 3.) Fa-, fém-, nyomda-, műanyag-, textilipari gépek és gépsorok --- | B25: 25
A26: aprító-, faragó-, forgácsoló gép | B26: 26
A27: bőrgyártás, cserzés gépei | B27: 27
A28: daraboló-, vágógép | B28: 28
A29: deszka osztályozó és csomagoló gép | B29: 29
A30: előkészítő gépek | B30: 30
A31: eszterga-, fúró-, gyalu-, maró-, vésőgép | B31: 31
A32: eszterga-, gyalu-, marógép | B32: 32
A33: farostlemez prés | B33: 33
A34: felületi bevonás, galvanizálás gépei | B34: 34
A35: fémkereső készülék | B35: 35
A36: fonó-, szövő-, kötő-, hurkoló-, himzőgép | B36: 36
A37: forgácslemez prés | B37: 37
A38: fűrész-, csiszológép | B38: 38
A39: gömbfa (szálfa) osztályozó | B39: 39
A40: hántoló-, furnérvágó gép | B40: 40
A41: hegesztési technológia gépei | B41: 41
A42: hideg lemezalakítás gépei | B42: 42
A43: huzalgyártás és feldolgozás gépei | B43: 43
A44: ívnyomtató | B44: 44
A45: kalander | B45: 45
A46: kártológép | B46: 46
A47: kasírozó és hullámkarton gyártó gép | B47: 47
A48: könyvkötő gép | B48: 48
A49: lemezcsiszoló gép | B49: 49
A50: mosó-, szárító automata | B50: 50
A51: nyomdai fotógép | B51: 51
A52: nyomtató automata | B52: 52
A53: papír és karton gyártó gépsor | B53: 53
A54: présgép | B54: 54
A55: rétegeltlemez prés | B55: 55
A56: sajtoló szerszám, dombornyomó prés | B56: 56
A57: sajtoló-, vágó-, lyukasztógép | B57: 57
A58: szabászgép | B58: 58
A59: szárító berendezés | B59: 59
A60: szárító-, impregnáló berendezés | B60: 60
A61: szedő-, betüöntő gép | B61: 61
A62: szitanyomó-, flexonyomógép | B62: 62
A63: szűrő-, elszívó berendezés | B63: 63
A64: tekercsről nyomtató rotációs gép | B64: 64
A65: vagógép/gyorsvágó | B65: 65
A66: varrógép | B66: 66
A67: vegytisztító automata | B67: 67
B68: 68
A69: --- 4.) Élelmiszeripari-, raktározás és logisztikai gépek; épületgépészet --- | B69: 69
A70: Csőposta (iratszállító berendezés) | B70: 70
A71: Egyenirányító, teleptöltő | B71: 71
A72: Elektromos motor | B72: 72
A73: emelővillás targonca | B73: 73
A74: erjesztő szekrény | B74: 74
A75: ferdepályás felvonó | B75: 75
A76: főzőüst | B76: 76
A77: füstölő | B77: 77
A78: Gázkazán: csak fűtés | B78: 78
A79: Gázkazán: fűtés és melegvíz | B79: 79
A80: Generátor | B80: 80
A81: gyümölcsprés, szűrő-, ülepítő berendezés | B81: 81
A82: hús daraboló-, daráló- és egyéb aprítógép | B82: 82
A83: Hűtőgép (fagylaltkészítő gép) | B83: 83
A84: Hűtőkamra | B84: 84
A85: Hűtőpult | B85: 85
A86: Kapcsoló berendezés, állomás | B86: 86
A87: Klímaberendezés | B87: 87
A88: Konyhagép: telepített | B88: 88
A89: Lift, személyfelvonó | B89: 89
A90: Melegvíz tároló (bojler) | B90: 90
A91: mobil mérleg | B91: 91
A92: Mozgólépcső | B92: 92
A93: Palack- és hordómosó berendezés | B93: 93
A94: Pálinkafőző (lepárló) | B94: 94
A95: Páternoszter | B95: 95
A96: Porszívó (ipari) | B96: 96
A97: raktári emelő berendezés | B97: 97
A98: sütőkemence | B98: 98
A99: szállítószalag, szállítócsiga | B99: 99
A100: szárító berendezés | B100: 100
A101: Szellőztető berendezés | B101: 101
A102: szeparátor, centrifuga | B102: 102
A103: Szivattyú | B103: 103
A104: telepített mérleg | B104: 104
A105: tésztagyúró-, tésztakeverő berendezés | B105: 105
B106: 106
B107: 107
B108: 108
B109: 109
B110: 110
B111: 111
B112: 112
B113: 113
B114: 114
B115: 115
B116: 116
B117: 117
B118: 118
B119: 119
B120: 120
B121: 121

Sheet allrisklista (hidden)
A1: All risk gépbiztosítás
A3: --- 1) Mezőgazdasági és erdészeti gépek, targoncák --- | B3: 3
A4: bálázó | B4: 4
A5: betakarító gép | B5: 5
A6: gallyazó gép | B6: 6
A7: kéregtelenítő gép | B7: 7
A8: mosó berendezés | B8: 8
A9: műtrágya/vegyszer szórógép | B9: 9
A10: rönkszállító jármű | B10: 10
A11: Siló: szabad téren | B11: 11
A12: Siló: zárt térben | B12: 12
A13: talajmegmunkáló gép | B13: 13
A14: tehergépkocsira szerelt daru | B14: 14
A15: traktor | B15: 15
A16: vetőgép | B16: 16
A17: vontatógép | B17: 17
A18: zöldtakarmány szárító | B18: 18
B19: 19
A20: --- 2) építőipari gépek --- | B20: 20
A21: aszfaltkeverő | B21: 21
A22: betonkeverő telep | B22: 22
A23: betonkő-, műkő gyártás gépei | B23: 23
A24: betonszivattyú | B24: 24
A25: darabológép | B25: 25
A26: döngölő-, cölöpölő gép | B26: 26
A27: égető/szárító kemence | B27: 27
A28: hidraulikus mobil kalapács | B28: 28
A29: keverő-, szállító berendezés | B29: 29
A30: kotró-, rakodógép | B30: 30
A31: kő/tégla sajtó | B31: 31
A32: kőfeldolgozás gépei | B32: 32
A33: mobil keverők | B33: 33
A34: osztályozógép rosta, szita, ülepítő | B34: 34
A35: tömörítő (vibrátor) | B35: 35
A36: útburkolatfestő | B36: 36
A37: útburkolatmaró (aszfalt/beton) | B37: 37
A38: úthenger (vibrációs henger) | B38: 38
A39: vakológép | B39: 39
B40: 40
A41: --- 3.) Fa-, fém-, nyomda-, műanyag-, textilipari gépek és gépsorok --- | B41: 41
A42: aprító-, faragó-, forgácsoló gép | B42: 42
A43: bőrgyártás, cserzés gépei | B43: 43
A44: daraboló-, vágógép | B44: 44
A45: deszka osztályozó és csomagoló gép | B45: 45
A46: előkészítő gépek | B46: 46
A47: eszterga-, fúró-, gyalu-, maró-, vésőgép | B47: 47
A48: eszterga-, gyalu-, marógép | B48: 48
A49: farostlemez prés | B49: 49
A50: felületi bevonás, galvanizálás gépei | B50: 50
A51: fémkereső készülék | B51: 51
A52: fonó-, szövő-, kötő-, hurkoló-, himzőgép | B52: 52
A53: forgácslemez prés | B53: 53
A54: fűrész-, csiszológép | B54: 54
A55: gatter | B55: 55
A56: gömbfa (szálfa) osztályozó | B56: 56
A57: hántoló-, furnérvágó gép | B57: 57
A58: hegesztési technológia gépei | B58: 58
A59: hideg lemezalakítás gépei | B59: 59
A60: huzalgyártás és feldolgozás gépei | B60: 60
A61: ívnyomtató | B61: 61
A62: kalander | B62: 62
A63: kártológép | B63: 63
A64: könyvkötő gép | B64: 64
A65: lemezcsiszoló gép | B65: 65
A66: mosó-, szárító automata | B66: 66
A67: nyomdai fotógép | B67: 67
A68: nyomtató automata | B68: 68
A69: papír és karton gyártó gépsor | B69: 69
A70: présgép | B70: 70
A71: rétegeltlemez prés | B71: 71
A72: sajtoló szerszám, dombornyomó prés | B72: 72
A73: sajtoló-, vágó-, lyukasztógép | B73: 73
A74: szabászgép | B74: 74
A75: szárító berendezés | B75: 75
A76: szárító-, impregnáló berendezés | B76: 76
A77: szedő-, betüöntő gép | B77: 77
A78: szitanyomó-, flexonyomógép | B78: 78
A79: szűrő-, elszívó berendezés | B79: 79
A80: tekercsről nyomtató rotációs gép | B80: 80
A81: vágógép/gyorsvágó | B81: 81
A82: varrógép | B82: 82
A83: vegytisztító automata | B83: 83
B84: 84
A85: --- 4.) Élelmiszeripari-, raktározás és logisztikai gépek; épületgépészet --- | B85: 85
A86: csak fűtés | B86: 86
A87: Csőposta (iratszállító berendezés) | B87: 87
A88: Egyenirányító, teleptöltő | B88: 88
A89: Elektromos motor | B89: 89
A90: emelővillás targonca | B90: 90
A91: erjesztő szekrény | B91: 91
A92: ferdepályás felvonó | B92: 92
A93: főzőüst | B93: 93
A94: füstölő | B94: 94
A95: fűtés és melegvíz | B95: 95
A96: Generátor | B96: 96
A97: gyümölcsprés, szűrő-, ülepítő berendezés | B97: 97
A98: hús daraboló-, daráló- és egyéb aprítógép | B98: 98
A99: Hűtőgép (fagylaltkészítő gép) | B99: 99
A100: Hűtőkamra | B100: 100
A101: Hűtőpult | B101: 101
A102: Kapcsoló berendezés, állomás | B102: 102
A103: Klímaberendezés | B103: 103
A104: Konyhagép: telepített | B104: 104
A105: Lift | B105: 105
A106: Melegvíz tároló (bojler) | B106: 106
A107: mobil mérleg | B107: 107
A108: Mozgólépcső | B108: 108
A109: Palack- és hordómosó berendezés | B109: 109
A110: Pálinkafőző (lepárló) | B110: 110
A111: Páternoszter | B111: 111
A112: Porszívó (ipari) | B112: 112
A113: raktári emelő berendezés | B113: 113
A114: sütőkemence | B114: 114
A115: szállítószalag, szállítócsiga | B115: 115
A116: szárító berendezés | B116: 116
A117: Szellőztető berendezés | B117: 117
A118: szeparátor, centrifuga | B118: 118
A119: Szivattyú | B119: 119
A120: telepített mérleg | B120: 120
A121: tésztagyúró-, tésztakeverő berendezés | B121: 121
B122: 122
B123: 123
B124: 124
B125: 125
B126: 126
B127: 127
B128: 128
B129: 129
B130: 130
B131: 131
B132: 132
B133: 133
B134: 134
B135: 135
B136: 136
B137: 137
B138: 138
B139: 139
